bitfinex-derivatives/quotes_ETHF0:USTF0_20250217
["timestamp","ask_amount","ask_price","bid_price","bid_amount"]
[1739757184914,0.74629,2679.6,2679.3,3.7662]
[1739757185112,1.0981,2679.7,2679.3,3.7662]
[1739757185418,1.0981,2679.7,2679.4,0.7463]
[1739757185419,1.84435,2679.7,2679.4,0.7463]
[1739757185616,0.74627,2679.6,2679.4,0.7463]
[1739757185914,0.74627,2679.6,2679.5,0.5401]
[1739757186818,1.0981,2679.7,2679.3,3.7662]
[1739757187118,1.84434,2679.7,2679.4,0.74631]
[1739757187305,1.0981,2679.7,2679.4,0.74631]
[1739757187506,0.75005222,2679.6,2679.3,3.7662]
[1739757188115,0.75005222,2679.6,2679.3,4.51255]
[1739757188613,0.75005222,2679.6,2679.3,3.7662]
[1739757188807,0.75005222,2679.6,2679.3,4.51255]
[1739757189006,0.74633,2679.4,2679.3,3.2078]
[1739757189610,3.16433,2679.4,2679.3,3.2078]
[1739757191311,2.418,2679.4,2679.2,0.00560842]
[1739757191623,1.92335,2679.3,2679.2,0.00560842]
[1739757193918,0.74649,2678.9,2678.6,0.5663]
[1739757194114,3.595,2678.8,2678.6,0.5663]
[1739757194714,0.74652,2678.7,2678.6,0.5786]
[1739757194915,3.595,2678.8,2678.4,3.21339785]
[1739757195120,1.177,2678.8,2678.4,3.21339785]
[1739757195316,2.418,2678.7,2678.4,3.21339785]
[1739757195618,3.16453,2678.7,2678.4,3.21339785]
[1739757196017,2.418,2678.7,2678.4,3.21339785]
[1739757196215,0.74655,2678.6,2678.4,3.21339785]
[1739757196422,3.16454,2678.7,2678.4,3.21339785]
[1739757197321,2.418,2678.7,2678.5,0.74656]
[1739757198224,1.177,2678.8,2678.6,0.74654]
[1739757198411,1.177,2678.8,2678.7,1.1395]
[1739757198613,3.595,2678.8,2678.7,1.1395]
[1739757199113,3.0055,2678.8,2678.7,1.1395]
[1739757199314,3.0055,2678.8,2678.7,1.88602]
[1739757199514,3.0055,2678.8,2678.7,1.1395]
[1739757201724,0.5875,2678.8,2678.7,1.88602]
[1739757201919,2.418,2678.8,2678.7,4.3473]
[1739757202118,2.418,2678.8,2678.7,5.09382]
[1739757204428,1.91232319,2679.0,2678.7,4.3473]
[1739757204624,2.419,2678.9,2678.7,4.3473]
[1739757204925,2.419,2678.9,2678.4,3.21339785]
[1739757205125,2.93349711,2678.7,2678.4,3.21339785]
[1739757205430,40.8,2678.9,2678.4,3.21339785]
[1739757205625,2.419,2678.8,2678.5,0.5537]
[1739757205829,2.419,2678.8,2678.4,3.21339785]
[1739757205830,0.74657,2678.6,2678.4,3.21339785]
[1739757206031,0.5622,2678.5,2678.4,3.21339785]
[1739757206329,1.1436,2678.5,2678.4,3.21339785]
[1739757208029,1.89018,2678.5,2678.4,3.21339785]
[1739757209830,1.89018,2678.5,2678.4,0.00559785]
[1739757211132,1.1436,2678.5,2678.4,0.00559785]
[1739757211334,1.89018,2678.5,2678.4,0.00559785]
[1739757213931,1.1436,2678.5,2678.4,0.00559785]
[1739757214129,1.1436,2678.5,2678.4,0.75220785]
[1739757214326,0.74652,2678.7,2678.4,0.75220785]
[1739757214723,2.419,2678.6,2678.4,0.75220785]
[1739757214929,2.419,2678.6,2678.5,0.74658]
[1739757216626,2.419,2678.6,2678.4,0.00559785]
[1739757216823,2.419,2678.6,2678.5,0.74658]
[1739757217128,2.419,2678.6,2678.4,3.21339785]
[1739757217326,2.419,2678.6,2678.5,0.74656]
[1739757218631,2.419,2678.6,2678.4,3.95997785]
[1739757218828,2.419,2678.6,2678.4,3.21339785]
[1739757219031,2.419,2678.6,2678.5,0.74658]
[1739757220032,0.74658,2678.5,2678.4,0.00559785]
[1739757220341,1.84778,2678.5,2678.4,0.00559785]
[1739757220526,42.64778,2678.5,2678.4,0.00559785]
[1739757221734,1.84778,2678.5,2678.4,0.00559785]
[1739757226237,5.05558,2678.5,2678.4,0.00559785]
[1739757226438,5.59828,2678.5,2678.4,0.00559785]
[1739757226629,0.74675,2677.9,2677.7,4.3329]
[1739757226834,2.419,2677.8,2677.7,4.3329]
[1739757227037,2.419,2677.8,2677.7,5.0797]
[1739757232436,1.107,2678.3,2677.7,4.3329]
[1739757232743,2.419,2678.2,2678.0,3.2078]
[1739757233033,2.419,2678.2,2678.1,1.7345]
[1739757233636,3.16568,2678.2,2678.1,1.7345]
[1739757234240,3.16568,2678.2,2678.1,2.48119]
[1739757234441,2.419,2678.2,2678.1,2.48119]
[1739757235142,0.74669,2678.1,2678.0,3.2078]
[1739757235439,2.419,2678.2,2678.0,3.2078]
[1739757235642,3.16568,2678.2,2678.0,3.95452]
[1739757235829,2.419,2678.2,2678.0,3.95452]
[1739757236034,3.16567,2678.2,2678.0,3.95452]
[1739757236440,0.74669,2678.1,2678.0,3.95452]
[1739757236941,3.16568,2678.2,2678.0,3.95452]
[1739757237244,2.419,2678.2,2678.1,0.74669]
[1739757238848,0.74662,2678.4,2678.0,3.2078]
[1739757239034,2.419,2678.3,2678.2,0.74665]
[1739757239344,1.29219,2678.5,2678.0,3.2078]
[1739757239546,2.419,2678.4,2678.3,0.74662]
[1739757242144,2.419,2678.4,2678.3,3.95443]
[1739757242350,3.48459711,2678.8,2678.6,0.74655]
[1739757242351,1.3292,2678.8,2678.6,0.74655]
[1739757242642,1.3292,2678.8,2678.7,0.5712]
[1739757242945,3.7482,2678.8,2678.7,0.5712]
[1739757243343,3.0017,2678.8,2678.7,0.5712]
[1739757243849,4.52018,2678.9,2678.7,0.5712]
[1739757244148,4.52018,2678.9,2678.7,1.31771]
[1739757244149,3.7737,2678.9,2678.7,1.31771]
[1739757244340,1.31238,2678.9,2678.7,0.5712]
[1739757244542,3.73138,2678.9,2678.7,0.5712]
[1739757245451,3.73138,2678.9,2678.7,1.31772]
[1739757245949,3.73138,2678.9,2678.7,0.5712]
[1739757246242,3.73138,2678.9,2678.7,1.31772]
[1739757247143,2.9849,2678.9,2678.7,1.31772]
[1739757247642,2.9849,2678.9,2678.8,0.74649]
[1739757248045,2.9849,2678.9,2678.7,1.31771]
[1739757248242,3.73137,2678.9,2678.7,0.5712]
[1739757248442,3.73137,2678.9,2678.7,1.31771]
[1739757248638,2.9849,2678.9,2678.7,1.31771]
[1739757248847,2.9849,2678.9,2678.8,0.74649]
[1739757249250,2.9849,2678.9,2678.7,0.5712]
[1739757249443,2.9849,2678.9,2678.8,0.74649]
[1739757249856,2.419,2678.9,2678.8,0.74649]
[1739757250254,1.29721319,2679.0,2678.8,0.74647]
[1739757250455,2.419,2678.9,2678.8,1.29277]
[1739757251253,2.419,2678.9,2678.8,0.5463]
[1739757251547,2.419,2678.9,2678.8,1.29279]
[1739757252351,1.29722319,2679.0,2678.8,1.29279]
[1739757252352,0.00557319,2679.0,2678.9,0.74647]
[1739757252657,0.74644,2679.0,2678.9,3.2078]
[1739757253053,2.986,2679.2,2678.9,3.2078]
[1739757253353,2.419,2679.2,2679.1,0.74641]
[1739757253554,2.9591,2679.2,2679.1,0.74641]
[1739757253756,2.419,2679.2,2679.1,0.74641]
[1739757254655,2.419,2679.2,2679.1,1.33451]
[1739757254948,2.419,2679.2,2679.1,1.92411]
[1739757260056,2.42359785,2679.4,2679.3,0.74635]
[1739757260248,2.42359785,2679.4,2679.3,3.95415]
[1739757260859,3.2078,2680.5,2679.3,9.2078]
[1739757261054,1.31121,2680.2,2680.0,0.74615]
[1739757261254,0.5651,2680.2,2679.7,1.7211]
[1739757261464,0.5651,2680.2,2679.9,0.74618]
[1739757261661,0.5651,2680.2,2679.7,1.7211]
[1739757261858,0.5651,2680.2,2680.1,0.74613]
[1739757262555,0.5651,2680.2,2680.0,0.74615]
[1739757262755,2.418,2680.1,2680.0,0.74615]
[1739757263663,2.418,2680.1,2679.9,3.2078]
[1739757263664,2.418,2680.2,2679.9,3.2078]
[1739757263856,2.418,2680.2,2680.1,0.74613]
[1739757264055,2.418,2680.3,2680.2,0.7461]
[1739757264963,2.418,2680.3,2679.9,3.2078]
[1739757265654,3.0022,2680.3,2679.9,3.2078]
[1739757265853,3.0022,2680.3,2680.0,0.74616]
[1739757266060,3.0022,2680.3,2679.9,3.2078]
[1739757266260,0.74611,2680.2,2679.9,3.95397]
[1739757266763,3.0022,2680.3,2679.9,3.2078]
[1739757266957,2.418,2680.3,2680.2,0.7461]
[1739757267462,3.5212,2680.4,2680.2,0.7461]
[1739757267654,3.5212,2680.4,2679.9,3.2078]
[1739757267850,3.5212,2680.4,2679.9,5.07327]
[1739757268062,3.5212,2680.4,2680.3,0.74608]
[1739757268862,3.5212,2680.4,2680.1,0.5653]
[1739757269059,3.5212,2680.4,2680.3,0.74608]
[1739757270267,2.417,2680.6,2680.5,0.74602]
[1739757270559,0.5842,2680.7,2680.6,0.74599]
[1739757270750,3.0012,2680.7,2680.6,0.74599]
[1739757270952,1.0986,2680.8,2680.3,1.87076785]
[1739757271152,1.0986,2680.8,2680.7,3.95376]
[1739757271356,0.37360001,2681.4,2680.7,3.95376]
[1739757271357,2.42,2681.9,2680.7,6.14129711]
[1739757271566,3.2078,2682.1,2681.6,0.74569]
[1739757271764,43.22,2682.0,2681.7,0.74568]
[1739757271960,3.2078,2682.1,2681.5,0.5996]
[1739757272364,3.2078,2682.1,2681.7,3.2078]
[1739757272561,6.14129711,2682.1,2681.5,1.1955]
[1739757272761,3.2078,2681.8,2681.1,6.14129711]
[1739757273065,3.569,2681.7,2681.1,3.95363]
[1739757273262,3.569,2681.7,2681.1,3.2078]
[1739757273468,0.74573,2681.6,2681.1,3.2078]
[1739757273669,2.93349711,2681.5,2681.1,3.2078]
[1739757273969,1.31658,2681.4,2680.7,0.74596]
[1739757274163,2.439,2681.3,2680.6,4.3488]
[1739757274362,0.5665,2681.2,2680.6,4.3488]
[1739757274663,4.52014,2681.2,2680.6,4.3488]
[1739757274867,3.2078,2680.9,2680.3,0.00559785]
[1739757275166,3.5515,2680.8,2680.3,0.00559785]
[1739757275365,0.5665,2680.7,2680.4,0.74605]
[1739757275973,0.5665,2680.7,2680.3,0.00559785]
[1739757276468,0.5665,2680.7,2680.3,0.75164785]
[1739757277258,0.5665,2680.7,2680.3,0.00559785]
[1739757277868,1.31247,2680.7,2680.3,0.00559785]
[1739757278065,0.5665,2680.7,2680.3,0.00559785]
[1739757278271,1.31247,2680.7,2680.3,0.00559785]
[1739757278973,6.14129711,2680.6,2680.3,0.00559785]
[1739757279566,0.74605,2680.4,2680.3,0.00559785]
[1739757279769,3.18705,2680.4,2680.3,0.00559785]
[1739757279971,2.441,2680.4,2680.3,0.00559785]
[1739757281265,2.443,2680.4,2680.3,0.00559785]
[1739757282072,3.18905,2680.4,2680.3,0.00559785]
[1739757282269,2.443,2680.4,2680.3,0.00559785]
[1739757283665,3.18905,2680.4,2680.3,0.00559785]
[1739757285378,2.443,2680.4,2679.8,3.2078]
[1739757285571,0.74617,2680.0,2679.8,3.2078]
[1739757285871,3.5794,2679.9,2679.8,3.2078]
[1739757286774,4.32559,2679.9,2679.8,3.2078]
[1739757287072,3.5794,2679.9,2679.8,3.2078]
[1739757287268,4.32559,2679.9,2679.8,3.2078]
[1739757287569,0.74624,2679.7,2679.6,0.00559785]
[1739757288980,3.67973711,2679.7,2679.6,0.00559785]
[1739757289481,6.88753711,2679.7,2679.6,0.00559785]
[1739757289676,14.00691711,2679.7,2679.0,0.5625]
[1739757289878,0.74639,2679.2,2679.0,0.5625]
[1739757290079,2.446,2679.1,2679.0,0.5625]
[1739757291476,2.446,2679.1,2679.0,1.30894]
[1739757291977,2.446,2679.1,2679.0,0.5625]
[1739757294772,0.5959,2679.3,2679.0,0.5625]
[1739757294773,2.20393948,2679.4,2679.3,0.74635]
[1739757295173,3.2078,2679.7,2679.3,3.2078]
[1739757295375,2.444,2679.9,2679.4,3.52749711]
[1739757295570,1.32714,2680.5,2680.0,0.74616]
[1739757295774,2.45059785,2680.1,2680.0,0.74616]
[1739757296076,2.45059785,2680.1,2679.9,3.2078]
[1739757296978,2.45059785,2680.1,2680.0,0.74616]
[1739757297575,2.45059785,2680.1,2680.0,0.594]
[1739757299078,2.45059785,2680.1,2679.9,3.2078]
[1739757299378,3.02119785,2680.1,2679.9,3.2078]
[1739757299977,2.45059785,2680.1,2680.0,0.74616]
[1739757300280,2.45059785,2680.1,2680.0,0.5822]
[1739757301178,2.45059785,2680.1,2680.0,1.32836]
[1739757301771,0.00559785,2680.1,2680.0,1.32836]
[1739757301987,2.44859785,2680.1,2680.0,1.32836]
[1739757302175,0.00559785,2680.1,2680.0,1.32836]
[1739757304075,0.00559785,2680.1,2680.0,4.26185711]
[1739757304272,0.5985,2680.9,2680.7,0.74596]
[1739757304477,3.2078,2681.1,2680.8,0.74591]
[1739757304677,2.46,2681.0,2680.8,0.74591]
[1739757304872,2.46,2681.0,2680.9,0.5411]
[1739757305985,3.2078,2681.1,2680.9,0.5411]
[1739757306182,2.458,2681.0,2680.9,0.5411]
[1739757306779,40.80559785,2681.2,2681.0,0.74586]
[1739757306980,0.00559785,2681.2,2681.1,0.74585]
[1739757307179,0.00559785,2681.2,2681.1,3.95365]
[1739757307375,0.00559785,2681.2,2681.1,4.52965]
[1739757309289,0.00559785,2681.2,2681.1,4.82603349]
[1739757309588,0.00559785,2681.2,2681.1,4.52965]
[1739757310790,0.5693,2682.1,2681.1,9.7838]
[1739757311090,3.2078,2682.5,2681.9,3.2078]
[1739757311286,2.468,2682.2,2682.0,0.74559]
[1739757311886,3.21355,2682.2,2682.0,0.74559]
[1739757312087,2.468,2682.2,2681.9,3.2078]
[1739757312282,2.468,2682.2,2682.0,0.7456]
[1739757313001,2.465,2682.2,2682.1,0.74558]
[1739757313889,3.2078,2682.5,2681.9,6.14129711]
[1739757314078,2.468,2682.5,2682.4,0.74549]
[1739757314283,2.468,2682.5,2682.3,0.74552]
[1739757314481,2.468,2682.5,2682.2,3.95333]
[1739757314697,2.468,2682.5,2682.2,3.2078]
[1739757314885,2.468,2682.5,2682.2,6.14129711]
[1739757315084,2.47,2682.7,2682.6,0.74542]
[1739757315391,5.6818,2682.8,2682.6,0.74542]
[1739757316394,5.6818,2682.8,2682.5,0.74545]
[1739757316690,5.6818,2682.8,2682.6,0.74543]
[1739757317488,2.474,2682.8,2682.7,0.74541]
[1739757317687,2.474,2682.8,2682.6,0.74542]
[1739757317888,2.469,2682.8,2682.5,0.74545]
[1739757318085,2.469,2682.8,2682.3,1.1241]
[1739757318289,2.469,2682.8,2682.6,0.74543]
[1739757318593,2.469,2682.8,2682.6,0.74542]
[1739757318991,2.469,2682.8,2682.7,0.74541]
[1739757319692,3.2078,2683.1,2682.8,0.74538]
[1739757319893,2.467,2682.9,2682.7,0.74539]
[1739757320293,2.467,2682.9,2682.7,0.74541]
[1739757320694,2.467,2682.9,2682.6,0.5684]
[1739757320897,2.467,2682.9,2682.6,1.31382]
[1739757321097,2.467,2682.9,2682.6,0.5684]
[1739757321297,3.21235,2682.9,2682.6,0.5684]
[1739757321487,2.467,2682.9,2682.6,1.31382]
[1739757321689,2.467,2682.9,2682.6,0.5684]
[1739757322000,3.21235,2682.9,2682.6,0.74543]
[1739757322294,2.467,2682.9,2682.6,0.74542]
[1739757322498,3.21235,2682.9,2682.6,0.74542]
[1739757323003,2.467,2682.9,2682.5,3.2078]
[1739757323190,2.467,2682.9,2682.7,0.74541]
[1739757323386,2.467,2682.9,2682.5,3.2078]
[1739757323599,0.5699,2683.2,2682.9,0.74535]
[1739757323600,2.464,2683.0,2682.9,0.74535]
[1739757323791,2.464,2683.0,2682.9,1.30815]
[1739757323992,3.2078,2683.4,2682.9,0.5628]
[1739757324190,1.1168,2683.7,2683.1,6.14129711]
[1739757324798,3.2078,2683.5,2682.9,0.5628]
[1739757324998,0.74526,2683.3,2682.8,3.95318]
[1739757325196,1.31619,2683.2,2682.8,3.2078]
[1739757325385,0.5709,2683.2,2682.8,3.2078]
[1739757325584,0.74534,2683.0,2682.8,3.2078]
[1739757325789,2.472,2683.0,2682.8,3.2078]
[1739757326596,3.21735,2683.0,2682.8,3.2078]
[1739757326889,2.472,2683.0,2682.8,3.2078]
[1739757327197,2.472,2683.0,2682.8,3.95317]
[1739757327389,2.472,2683.0,2682.8,3.2078]
[1739757327585,1.1377,2683.1,2682.8,3.2078]
[1739757327791,2.473,2683.0,2682.8,3.2078]
[1739757327992,2.473,2683.1,2682.9,0.74535]
[1739757328195,2.473,2683.1,2682.8,3.2078]
[1739757328196,5.40649711,2683.1,2682.8,3.2078]
[1739757328394,0.74546,2682.5,2682.1,0.00559785]
[1739757328599,2.494,2682.6,2682.3,3.2078]
[1739757328896,1.1808,2683.0,2682.4,0.5711]
[1739757329086,2.495,2683.1,2682.7,3.2078]
[1739757329292,2.495,2683.1,2682.8,0.5739]
[1739757329594,2.495,2683.2,2682.8,0.5739]
[1739757329790,5.7028,2683.2,2682.4,3.7789]
[1739757329994,8.63629711,2683.2,2682.4,3.7789]
[1739757330194,6.14129711,2682.9,2682.1,0.00559785]
[1739757330394,6.14129711,2682.6,2682.1,0.00559785]
[1739757330696,0.74555,2682.2,2682.1,0.00559785]
[1739757330893,3.25055,2682.2,2682.1,0.00559785]
[1739757331691,4.2321,2682.2,2681.6,3.2078]
[1739757332394,0.74569,2681.7,2681.6,3.2078]
[1739757332597,2.504,2681.7,2681.6,3.2078]
[1739757334499,2.504,2681.7,2681.6,3.95351]
[1739757334699,2.504,2681.7,2681.6,3.2078]
[1739757336103,1.504,2681.7,2681.6,3.2078]
[1739757336703,2.24969,2681.7,2681.6,3.2078]
[1739757337197,1.504,2681.7,2681.4,0.75134785]
[1739757337593,2.24969,2681.7,2681.4,0.00559785]
[1739757337795,1.504,2681.7,2681.4,0.75136785]
[1739757337994,2.24969,2681.7,2681.4,0.75136785]
[1739757338397,2.24969,2681.7,2681.4,0.00559785]
[1739757338597,2.24971,2681.7,2681.4,0.00559785]
[1739757339097,0.74572,2681.6,2681.4,0.00559785]
[1739757340607,0.74571,2681.6,2681.4,0.00559785]
[1739757342006,0.74571,2681.6,2681.4,0.75134785]
[1739757342711,0.74573,2681.6,2681.4,0.75135785]
[1739757342912,0.74574,2681.5,2681.4,0.75135785]
[1739757343102,0.74574,2681.5,2681.4,0.00559785]
[1739757343303,0.74574,2681.6,2681.4,0.75134785]
[1739757343707,0.74574,2681.5,2681.4,0.00559785]
[1739757344007,0.74574,2681.5,2681.4,0.75136785]
[1739757344401,0.74574,2681.5,2681.4,0.00559785]
[1739757344600,0.74574,2681.5,2681.4,0.75136785]
[1739757344796,0.74572,2681.6,2681.4,0.75135785]
[1739757345010,0.74574,2681.5,2681.4,0.00559785]
[1739757345802,0.74574,2681.5,2681.4,0.75136785]
[1739757347506,0.74574,2681.5,2681.4,0.00559785]
[1739757348006,0.74574,2681.6,2681.4,0.75135785]
[1739757348205,0.74574,2681.6,2681.4,0.00559785]
[1739757348413,0.74574,2681.5,2681.4,0.75135785]
[1739757348613,0.74573,2681.6,2681.5,0.74574]
[1739757349707,0.74574,2681.5,2681.4,0.00559785]
[1739757351111,0.74588,2681.0,2680.9,3.2078]
[1739757351301,2.486,2681.0,2680.9,3.2078]
[1739757352111,2.486,2681.0,2680.9,3.95371]
[1739757352413,2.486,2681.0,2680.9,3.2078]
[1739757352615,2.486,2681.0,2680.9,3.95371]
[1739757353714,3.23188,2681.0,2680.9,3.2078]
[1739757354014,2.486,2681.0,2680.9,3.2078]
[1739757354214,3.23188,2681.0,2680.9,3.2078]
[1739757355011,2.486,2681.0,2680.9,3.2078]
[1739757355312,3.23188,2681.0,2680.9,3.2078]
[1739757356102,2.486,2681.0,2680.9,3.2078]
[1739757356516,3.23188,2681.0,2680.9,3.2078]
[1739757356718,3.23188,2681.0,2680.7,1.33943785]
[1739757357812,3.23189,2681.0,2680.8,0.74593]
[1739757358026,2.482,2681.0,2680.7,1.33944785]
[1739757358219,3.22789,2681.0,2680.7,1.33944785]
[1739757358421,2.482,2681.0,2680.7,0.59349785]
[1739757358917,3.22789,2681.0,2680.8,0.74592]
[1739757359120,3.22789,2681.0,2680.7,1.33944785]
[1739757359616,3.22789,2681.0,2680.8,0.74593]
[1739757359816,2.482,2681.0,2680.7,0.59349785]
[1739757360114,1.31013,2680.9,2680.7,0.59349785]
[1739757360325,1.31013,2680.9,2680.7,0.00559785]
[1739757360326,0.74594,2680.8,2680.7,0.00559785]
[1739757362418,0.5642,2680.9,2680.7,0.00559785]
[1739757362615,0.74594,2680.8,2680.7,0.00559785]
[1739757363517,1.31012,2680.9,2680.7,0.75154785]
[1739757364316,0.5642,2680.9,2680.8,0.74594]
[1739757364521,0.5642,2680.9,2680.8,0.5746]
[1739757365228,0.5642,2680.9,2680.8,1.32054]
[1739757365926,1.31011,2680.9,2680.8,0.5746]
[1739757366327,0.74594,2680.8,2680.7,0.00559785]
[1739757366933,0.74605,2680.4,2680.3,3.2078]
[1739757367127,3.22805,2680.4,2680.3,3.2078]
[1739757367423,2.482,2680.4,2679.8,0.5491]
[1739757367632,2.482,2680.4,2679.6,0.5613]
[1739757367633,0.74619,2679.9,2679.6,0.5613]
[1739757367945,3.0723,2679.8,2679.6,0.5613]
[1739757368123,3.0723,2679.8,2679.6,1.30757]
[1739757368323,3.0723,2679.8,2679.6,0.5613]
[1739757368928,0.00559785,2680.0,2679.6,0.5613]
[1739757369124,0.00559785,2680.0,2679.9,0.74619]
[1739757369323,2.49159785,2680.0,2679.9,0.74619]
[1739757369929,2.49159785,2680.0,2679.8,0.7462]
[1739757370530,2.49159785,2680.0,2679.7,3.2078]
[1739757370728,1.33349,2679.9,2679.7,3.2078]
[1739757371029,0.5873,2679.9,2679.8,0.74621]
[1739757371229,2.49159785,2680.0,2679.8,0.74621]
[1739757371431,2.49159785,2680.0,2679.7,3.95402]
[1739757371631,2.49159785,2680.0,2679.8,0.74621]
[1739757372631,2.49159785,2680.0,2679.7,3.2078]
[1739757372927,3.23775785,2680.0,2679.7,3.2078]
[1739757373140,0.74619,2679.9,2679.7,3.2078]
[1739757373536,0.5865,2679.8,2679.7,3.2078]
[1739757374534,1.33271,2679.8,2679.7,3.2078]
[1739757374736,0.5865,2679.8,2679.7,3.2078]
[1739757375045,2.49159785,2680.0,2679.7,3.2078]
[1739757375231,2.488,2679.9,2679.7,3.2078]
[1739757375440,2.488,2679.9,2679.8,0.74621]
[1739757375837,2.488,2679.9,2679.8,1.34281]
[1739757376842,0.00559785,2680.0,2679.9,0.74619]
[1739757377038,2.49259785,2680.0,2679.9,0.74619]
[1739757377239,2.49259785,2680.0,2679.8,1.34279]
[1739757377438,2.49259785,2680.0,2679.8,1.3428]
[1739757377640,3.23876785,2680.0,2679.7,3.95402]
[1739757377941,3.23876785,2680.0,2679.7,3.2078]
[1739757378745,3.23876785,2680.0,2679.7,3.95404]
[1739757379149,2.49259785,2680.0,2679.5,1.15379785]
[1739757379349,0.74623,2679.8,2679.5,0.55469785]
[1739757379537,1.1493,2679.7,2679.5,0.55469785]
[1739757379744,2.486,2679.6,2679.5,0.55469785]
[1739757380049,3.0706,2679.6,2679.5,0.55469785]
[1739757380247,3.0706,2679.6,2679.5,0.00559785]
[1739757380452,3.0706,2679.6,2679.5,0.75189785]
[1739757380756,2.486,2679.6,2679.5,0.75189785]
[1739757380947,2.486,2679.6,2679.5,1.32739785]
[1739757384055,3.21339785,2680.0,2679.5,1.32739785]
[1739757384056,3.21339785,2680.0,2679.9,0.74619]
[1739757384236,5.69939785,2680.0,2679.9,0.74619]
[1739757384545,6.44557785,2680.0,2679.5,1.32739785]
[1739757384749,5.69939785,2680.0,2679.9,0.74619]
[1739757385244,5.69939785,2680.0,2679.5,1.32739785]
[1739757385445,0.00559785,2680.0,2679.9,0.74619]
[1739757385653,2.49059785,2680.0,2679.9,0.74619]
[1739757385845,2.48959785,2680.0,2679.9,0.74619]
[1739757386445,2.48959785,2680.0,2679.7,4.313]
[1739757386655,3.23577785,2680.0,2679.8,0.7462]
[1739757386848,2.48959785,2680.0,2679.9,0.74619]
[1739757387850,2.48959785,2680.0,2679.7,4.313]
[1739757388045,2.48959785,2680.0,2679.9,0.74619]
[1739757391252,3.23575785,2680.0,2679.8,0.7462]
[1739757392047,3.23575785,2680.0,2679.7,5.05923]
[1739757392444,3.23575785,2680.0,2679.8,0.74621]
[1739757393640,3.23575785,2680.0,2679.7,4.313]
[1739757393853,3.23575785,2680.0,2679.8,0.74621]
[1739757395641,3.23575785,2680.0,2679.7,4.313]
[1739757395841,3.23575785,2680.0,2679.7,5.05921]
[1739757396045,3.23575785,2680.0,2679.7,3.2078]
[1739757396046,2.48959785,2680.0,2679.7,3.2078]
[1739757396249,0.74621,2679.8,2679.6,0.74625]
[1739757396449,2.48959785,2680.0,2679.5,0.00559785]
[1739757396754,41.54621,2679.9,2679.7,0.74624]
[1739757397154,0.74621,2679.9,2679.7,0.74624]
[1739757397350,0.74621,2679.9,2679.5,0.00559785]
[1739757397542,2.48959785,2680.0,2679.5,1.87132785]
[1739757397751,2.48959785,2680.0,2679.9,0.74619]
[1739757398053,2.48959785,2680.0,2679.6,0.55]
[1739757398254,2.48959785,2680.0,2679.8,0.7462]
[1739757398654,3.23576785,2680.0,2679.8,0.7462]
[1739757399052,0.7462,2679.9,2679.7,0.74623]
[1739757399451,2.48959785,2680.0,2679.5,0.00559785]
[1739757399652,2.48959785,2680.0,2679.8,0.74621]
[1739757399653,3.23575785,2680.0,2679.8,0.74621]
[1739757399851,2.48959785,2680.0,2679.8,0.74621]
[1739757400048,2.48959785,2680.0,2679.9,0.74619]
[1739757400255,2.47559785,2680.0,2679.9,0.74619]
[1739757406956,0.00559785,2680.0,2679.9,0.74619]
[1739757407255,2.46759785,2680.0,2679.9,0.74619]
[1739757408059,2.461,2680.1,2679.8,1.7027]
[1739757408262,2.461,2680.1,2680.0,3.95396]
[1739757410159,2.46559785,2680.3,2680.2,0.7461]
[1739757411264,0.00559785,2680.3,2680.2,0.7461]
[1739757412767,0.00559785,2680.3,2680.0,3.95396]
[1739757412768,0.00559785,2680.3,2680.0,3.2078]
[1739757412957,0.75167785,2680.3,2680.1,0.74611]
[1739757413154,0.5695,2680.2,2680.0,3.2078]
[1739757413363,0.74613,2680.1,2680.0,3.2078]
[1739757413554,3.20713,2680.1,2680.0,3.2078]
[1739757413959,2.461,2680.1,2680.0,3.2078]
[1739757414162,2.461,2680.1,2680.0,3.95396]
[1739757414664,3.20713,2680.1,2680.0,3.2078]
[1739757415461,1.1522,2680.2,2680.1,0.74613]
[1739757415661,3.6182,2680.2,2680.1,0.74613]
[1739757415862,3.6182,2680.2,2680.1,1.89413]
[1739757417664,3.6182,2680.2,2680.1,1.148]
[1739757417860,3.6182,2680.2,2680.1,1.89413]
[1739757418269,3.6182,2680.2,2680.1,1.148]
[1739757418470,3.6182,2680.2,2680.0,3.2078]
[1739757418670,4.36431,2680.2,2680.0,3.2078]
[1739757418965,3.6182,2680.2,2680.0,3.2078]
[1739757419164,0.74613,2680.1,2680.0,3.2078]
[1739757419365,4.36433,2680.2,2680.0,3.2078]
[1739757419571,3.6182,2680.2,2680.0,3.2078]
[1739757420066,4.36431,2680.2,2680.0,3.2078]
[1739757420268,3.6182,2680.2,2680.0,3.2078]
[1739757420569,0.74613,2680.1,2680.0,3.2078]
[1739757421667,3.6182,2680.2,2680.0,3.2078]
[1739757421872,1.1522,2680.2,2680.1,0.74613]
[1739757422069,3.6172,2680.2,2680.1,0.74613]
[1739757422369,3.6172,2680.2,2680.0,3.95394]
[1739757422571,4.3633,2680.2,2680.0,3.2078]
[1739757423265,3.6172,2680.2,2680.0,3.2078]
[1739757423463,0.74613,2680.1,2680.0,3.2078]
[1739757424263,4.36332,2680.2,2680.0,3.95396]
[1739757424575,4.36332,2680.2,2680.0,3.2078]
[1739757425575,0.74613,2680.1,2680.0,3.2078]
[1739757426776,0.74613,2680.1,2679.9,3.2078]
[1739757427377,4.36331,2680.2,2679.9,3.95397]
[1739757427875,3.6172,2680.2,2679.9,3.95397]
[1739757428073,0.74614,2680.1,2679.9,3.95397]